Cogmind - Beta 15 @@@ ROGUE MODE // 2025.07.22 @ 18:29:43 Player: AussieBBQ Result: Destroyed by BI-8WQ(x) with Makeshift Spear Performance ------------- Evolutions (0) 0 Regions Visited (3) 600 Robots Destroyed (9) 45 Value Destroyed (235) 235 Prototype IDs (0) 0 Alien Tech Used (0) 0 Bonus (800) 800 TOTAL SCORE: 1680 Bonus ------- Registered with UFD 300 Met Optimus in HQ 500 Cogmind --------- Core Integrity 0/250 Matter 260/300 Energy 290/290 System Corruption 4% Temperature Hot (278) Movement Walking (265) Ox2 Location -7/Scraptown Parts ------- > --- POWER (1) -------- Improved Deuterium Engine > --- PROPULSION (2) --- Carbon-fiber Leg Titanium Leg > --- UTILITY (2) ------ Large Storage Unit High-capacity Storage Unit > --- WEAPON (2) ------- Gatling Laser Heavy Missile Launcher > --- INVENTORY (20) --- Nuclear Core Carbon-fiber Leg Carbon-fiber Leg Xenon Bombardment Thruster Improved Heat Sink Medium Storage Unit Compact Battery (200) Improved Signal Interpreter Seismic Detector Hardened Heavy Armor Plating Improved Light Armor Plating Shock Rifle Pulse Rifle Gatling Laser Assault Rifle CPS Tube (2) CPS Tube (2) Power Sword Peak State ------------ > --- POWER ------------ Improved Deuterium Engine > --- PROPULSION ------- Carbon-fiber Leg Titanium Leg > --- UTILITY ---------- Large Storage Unit High-capacity Storage Unit > --- WEAPON ----------- Gatling Laser Gatling Laser > --- INVENTORY -------- Nuclear Core Carbon-fiber Leg Carbon-fiber Leg Xenon Bombardment Thruster Improved Heat Sink Medium Storage Unit Compact Battery Improved Signal Interpreter Seismic Detector Hardened Heavy Armor Plating Improved Light Armor Plating Shock Rifle Pulse Rifle Assault Rifle Heavy Missile Launcher CPS Tube CPS Tube Power Sword [Rating: 25] Favorites ----------- Power Improved Deuterium Engine Engine Improved Deuterium Engine Propulsion Carbon-fiber Leg Leg Carbon-fiber Leg Utility Large Storage Unit Device Seismic Detector Storage Large Storage Unit Weapon Assault Rifle Energy Gun Gatling Laser Ballistic Gun Assault Rifle Launcher Heavy Missile Launcher Special Weapon Mining Laser Build | -11 -10 -10 -7 ------- Run | Yrd Mat Sub Scr Slots Evolved . | . . . . Power . | . . . . Propulsion . | . . . . Utility . | . . . . Weapon . | . . . . Parts Attached 30 | 8 8 7 7 Power 5 | 1 2 1 1 Engine 5 | 1 2 1 1 Core . | . . . . Reactor . | . . . . Propulsion 7 | 2 . 4 1 Treads . | . . . . Leg 7 | 2 . 4 1 Wheel . | . . . . Hover . | . . . . Flight . | . . . . Utility 8 | 3 3 . 2 Device 4 | 3 1 . . Storage 4 | . 2 . 2 Processor . | . . . . Hackware . | . . . . Protection . | . . . . Artifact . | . . . . Weapon 10 | 2 3 2 3 Energy Gun 5 | . 2 1 2 Energy Cannon . | . . . . Ballistic Gun 3 | 2 1 . . Ballistic Cannon . | . . . . Launcher 1 | . . . 1 Special Weapon 1 | . . 1 . Impact Weapon . | . . . . Slashing Weapon . | . . . . Piercing Weapon . | . . . . Special Melee Weapon . | . . . . Unidentified Prototypes . | . . . . Parts Lost 3 | . 1 2 . Power 1 | . 1 . . Propulsion 1 | . . 1 . Utility . | . . . . Weapon 1 | . . 1 . Highest Loss Streak 1 | . 1 1 . To Critical Strikes 1 | . . 1 . Average Backups 13 | 3 7 9 16 Power 1 | . . 1 1 Propulsion 2 | 1 2 1 2 Utility 5 | . 2 3 6 Weapon 3 | 1 2 2 4 Tool/Special . | . . . . Unused Backups 25 | 3 2 2 18 Power 3 | . . 1 2 Propulsion 5 | 2 . . 3 Utility 8 | . 1 1 6 Weapon 7 | 1 1 . 5 Tool/Special 2 | . . . 2 Average Slot Usage (%) 99 | . 100 96 100 Engine 14 | . 14 14 14 Leg 27 | . 28 25 28 Device 5 | . 19 14 2 Storage 22 | . 8 14 25 Energy Gun 12 | . 1 9 14 Ballistic Gun 15 | . 26 17 13 Peak Build Rating 25 | 9 10 12 25 Average Rating 17 | 5 8 10 20 On Entrance 7 | . 9 8 12 Naked Turns . | . . . . Heaviest Build 81 | 8 18 22 81 Greatest Support 32 | 20 20 25 32 Greatest Overweight (x) 2 | . . 1 2 Average Overweight (x) 1 | . . . 1 Largest Inventory Capacity 20 | 5 15 10 20 Average Capacity 15 | 5 7 10 18 Most Carried 20 | 5 10 10 20 Average Carried 14 | 3 7 9 16 Final Capacity 20 | 5 10 10 20 Final Carried 19 | 5 10 10 19 Class Distribution -------------------- 86% | Mutant 13% | Scavenger-Mutant Dominant Class ---------------- Mutant | -10/Materials Scavenger-Mutant | -10/Subcaves Mutant | -7/Scraptown Resources | -11 -10 -10 -7 ----------- Run | Yrd Mat Sub Scr Matter Collected 682 | 324 70 208 80 Remotely . | . . . . Salvage Created 268 | 81 84 103 . Parts 27 | 13 3 11 . Haulers Intercepted . | . . . . Recyclers Shooed . | . . . . Parts Field Recycled . | . . . . Retrieved Matter . | . . . . Parts Self-Destructed 7 | . . 7 . Prevented . | . . . . Kills | -11 -10 -10 -7 ------- Run | Yrd Mat Sub Scr Combat Hostiles Destroyed 7 | 1 3 3 . Guns 7 | 1 3 3 . Classes Destroyed 4 | 2 1 1 . Tunneler 2 | 2 . . . Swarmer 2 | . 2 . . Grunt 2 | 1 1 . . Subdweller 3 | . . 3 . Best Kill Streak 2 | 1 2 1 . Combat Bots Only 2 | 1 2 1 . Max Kills in Single Turn 1 | 1 1 1 . Gunslinging . | . . . . Exploded . | . . . . Melee . | . . . . Uniques/NPCs Destroyed . | . . . . Combat | -11 -10 -10 -7 -------- Run | Yrd Mat Sub Scr Hostile Shots Fired 84 | 4 23 10 47 Missed 21 | 3 4 3 11 Hits 63 | 1 19 7 36 Melee 1 | . . . 1 Projectile 62 | 1 19 7 35 AOE 1 | . . 1 . Critical Strikes 4 | . 2 1 1 Damage Taken 898 | 11 242 231 414 Core 252 | . 49 49 154 Absorbed by Shields . | . . . . Core Remaining (%) 100 | 100 . . . Volleys Fired 47 | 11 15 16 5 Largest 2 | 2 2 2 2 Hottest 160 | 40 40 100 160 Shots Fired 84 | 22 30 23 9 Gun 81 | 22 30 21 8 Cannon . | . . . . Launcher 1 | . . . 1 Special 2 | . . 2 . Kinetic 75 | 22 30 21 2 Thermal 8 | . . 2 6 Explosive 1 | . . . 1 Electromagnetic . | . . . . Robot Hit Streak 10 | 5 6 10 4 Robot Miss Streak 4 | 4 1 2 3 Penetration Max . | . . . . Secondary Targets 1 | . . 1 . Max Gunslinging Chain 1 | . . 1 . Shots Hit Robots 57 | 11 21 17 8 Core Hits 20 | 4 7 4 5 Critical Kills 1 | . . 1 . Critical Parts Destroyed . | . . . . Critical Strikes 1 | . . 1 . Destroy 1 | . . 1 . Melee Attacks . | . . . . Impact . | . . . . Slashing . | . . . . Piercing . | . . . . Sneak Attacks . | . . . . Combat Hostiles . | . . . . Follow-up Attacks . | . . . . Damage Inflicted 798 | 127 190 237 244 Guns 670 | 127 190 237 116 Cannons . | . . . . Explosions 128 | . . . 128 Melee . | . . . . Ramming . | . . . . Kinetic 580 | 127 190 237 26 Thermal 90 | . . . 90 Explosive 128 | . . . 128 Electromagnetic . | . . . . Impact . | . . . . Slashing . | . . . . Piercing . | . . . . Highest Corruption 4 | . . . 4 Average Corruption 3 | . . . 3 Corruption Purged . | . . . . Corruption Blocked . | . . . . Effects 1 | . . . 1 Heat Flow Errors 1 | . . . 1 Overload Shots . | . . . . Overflow Damage . | . . . . Projectiles . | . . . . Explosions . | . . . . Melee . | . . . . Knockbacks . | . . . . Impact . | . . . . Kinetic . | . . . . Secondary . | . . . . Self-Inflicted Damage . | . . . . Shots . | . . . . Rammed . | . . . . Targets Rammed . | . . . . Kicked . | . . . . Crushed . | . . . . Highest Temperature 384 | . 32 . 384 Average Temperature 108 | . 16 . 167 Received Heat Transfer 294 | 6 159 33 96 Siege Activations . | . . . . Martial Activations . | . . . . Shielding Activations . | . . . . Robots Disrupted . | . . . . Combat Hostiles . | . . . . Robots Corrupted . | . . . . Combat Hostiles . | . . . . Parts Fried . | . . . . Impact Corruptions . | . . . . Robots Melted . | . . . . Combat Hostiles . | . . . . Parts Melted . | . . . . Heat Transferred 160 | . . . 160 Parts Sabotaged . | . . . . Parts Stolen . | . . . . Parts Stripped . | . . . . Power Chain Reactions . | . . . . Alert | -11 -10 -10 -7 ------- Run | Yrd Mat Sub Scr Maximum Alert Level . | . . . . Low Security (%) 100 | 100 100 . . Level 1 . | . . . . Level 2 . | . . . . Level 3 . | . . . . Level 4 . | . . . . Level 5 . | . . . . High Security . | . . . . Max Security . | . . . . Peak Influence 55 | 20 55 . . Initial . | . . . . Average 11 | 3 14 . . Influence Increases 140 | 30 110 . . Destroy 0b10 Robot/C 80 | 20 60 . . Destroy 0b10 Robot/NC 10 | 10 . . . Destroy Leader 20 | . 20 . . Lose Combat Pursuer 30 | . 30 . . Influence Decreases 140 | 30 110 . . Time Decay 140 | 30 110 . . Squads Dispatched 1 | . 1 . . Investigation . | . . . . Extermination . | . . . . Reinforcement 1 | . 1 . . Assault . | . . . . Garrison . | . . . . Intercept . | . . . . Searches Triggered . | . . . . Construction Impeded . | . . . . Haulers Reinforced . | . . . . Active Scanning Responses . | . . . . Cargo Convoy Interrupts . | . . . . Stealth | -11 -10 -10 -7 --------- Run | Yrd Mat Sub Scr Distress Signals . | . . . . Communications Jammed . | . . . . Distress Signals . | . . . . Times Spotted 32 | 1 7 12 12 Peak Tracking Total 7 | 1 3 4 7 Tactical Retreats 2 | . 2 . . Traps | -11 -10 -10 -7 ------- Run | Yrd Mat Sub Scr Traps Triggered . | . . . . Indirectly . | . . . . Trap Hack Attempts . | . . . . Triggered . | . . . . Disarmed . | . . . . Reprogrammed . | . . . . Reused . | . . . . Traps Extracted . | . . . . Installed . | . . . . Triggered . | . . . . Machines | -11 -10 -10 -7 ---------- Run | Yrd Mat Sub Scr Machines Disabled . | . . . . Max in Single Turn . | . . . . Machines Repaired . | . . . . Machines Dismantled . | . . . . Machines Sabotaged . | . . . . Overloaded Fab Kills . | . . . . Hacking | -11 -10 -10 -7 --------- Run | Yrd Mat Sub Scr Machines Accessed 9 | . 1 . 8 Terminals . | . . . . Fabricators . | . . . . Repair Stations . | . . . . Recycling Units 1 | . 1 . . Scanalyzers . | . . . . Garrison Access . | . . . . Total Hacks 65 | . 2 . 63 Successful 65 | . 2 . 63 Failed . | . . . . Catastrophic . | . . . . Database Lockouts . | . . . . Manual . | . . . . Terminals . | . . . . Fabricators . | . . . . Repair Stations . | . . . . Recycling Units 2 | . 2 . . Scanalyzers . | . . . . Garrison Access . | . . . . Terminal Hacks 63 | . . . 63 Record 56 | . . . 56 Robot Analysis 7 | . . . 7 Fabricator Hacks . | . . . . Repair Station Hacks . | . . . . Recycling Unit Hacks 2 | . 2 . . Report Inventory 1 | . 1 . . Retrieve Components 1 | . 1 . . Scanalyzer . | . . . . Garrison Access Hacks . | . . . . Unauthorized Hacks . | . . . . Terminals . | . . . . Fabricators . | . . . . Repair Stations . | . . . . Recycling Units . | . . . . Scanalyzers . | . . . . Garrison Access . | . . . . Data Cores Recovered . | . . . . Used . | . . . . Hacking Detections 1 | . 1 . . Full Trace Events . | . . . . Feedback Events . | . . . . Feedback Blocked . | . . . . Robot Schematics Acquired . | . . . . Robots Built . | . . . . Authchips . | . . . . Time . | . . . . Total Robot Build Rating . | . . . . Part Schematics Acquired . | . . . . Parts Built . | . . . . Authchips . | . . . . Time . | . . . . Total Part Build Rating . | . . . . Parts Repaired . | . . . . Time . | . . . . Parts Recycled . | . . . . Recycled Matter . | . . . . Retrieved Matter . | . . . . Retrieved Components 2 | . 2 . . Parts Scanalyzed . | . . . . Part Schematics Acquired . | . . . . Parts Damaged . | . . . . Bothacking | -11 -10 -10 -7 ------------ Run | Yrd Mat Sub Scr Used RIF Installer . | . . . . Robots Hacked . | . . . . Non-combat . | . . . . Combat . | . . . . Robot Hacks Applied . | . . . . Relay Couplers Released . | . . . . Fabnet Peak Effective % . | . . . . Robots Rewired . | . . . . Allies Hacked . | . . . . Hacks Repelled . | . . . . Allies | -11 -10 -10 -7 -------- Run | Yrd Mat Sub Scr Total Allies . | . . . . Largest Group . | . . . . Highest-Rated Group . | . . . . Highest-Rated Ally . | . . . . Total Orders . | . . . . Ally Attacks . | . . . . Total Damage . | . . . . Kills . | . . . . Allies Corrupted . | . . . . Allies Melted . | . . . . Intel | -11 -10 -10 -7 ------- Run | Yrd Mat Sub Scr Active Infowar (turns) 1632 | 42 350 739 501 Terrain 182 | 42 140 . . Seismic 1613 | 23 350 739 501 Robot Analysis Total 7 | . . . 7 Derelict Logs Recovered 2 | . . . 2 Drone Launches . | . . . . Drone Recoveries . | . . . . Exploration | -11 -10 -10 -7 ------------- Run | Yrd Mat Sub Scr Turns Passed 4598 | 181 353 740 3324 Spaces Moved 2176 | 108 207 513 1348 Core 14 | 14 . . . Treads . | . . . . Legs 2162 | 94 207 513 1348 Wheels . | . . . . Hover . | . . . . Flight . | . . . . Fastest Speed 50 | 50 120 120 120 Average Speed 197 | 110 120 127 242 Slowest Speed 265 | 120 120 190 265 Overloaded Moves . | . . . . Propulsion Burnouts . | . . . . Robots Hopped . | . . . . Potential Cave-ins . | . . . . Cave-ins Triggered . | . . . . Exploration Rate (%) 38 | 6 26 34 86 Regions Visited 3 Branch Regions 2 Pre-discovered Areas 3 | . . 1 2 Known Exits Taken . | . . . . Unknown Exits Taken 3 | 1 1 1 . Scrap Searched 5 | . . . 5 Spaces Dug . | . . . . Terrain Destroyed 4 | . . . 4 Melee . | . . . . Projectile . | . . . . AOE 4 | . . . 4 Terrain Rammed . | . . . . Walls Destroyed . | . . . . Machines Disabled . | . . . . Actions | -11 -10 -10 -7 --------- Run | Yrd Mat Sub Scr Total 2405 | 149 283 575 1398 Wait 69 | 8 37 23 1 Move 2173 | 107 206 512 1348 Hop . | . . . . Pick Up 47 | 10 8 7 22 Fast Attach 12 | 6 4 . 2 Attach 7 | 2 1 4 . Detach 3 | 1 1 1 . Swap 16 | . 5 5 6 Drop 31 | 4 6 7 14 Fire 47 | 11 15 16 5 Melee . | . . . . Ram . | . . . . Kick . | . . . . Crush . | . . . . Escape Stasis . | . . . . Rewire . | . . . . Trap . | . . . . Miscellaneous . | . . . . Route ------- -11/Scrapyard -10/Materials -10/Subcaves -7/Scraptown (discovered 1 exit: [*Fac]) History --------- Turn | Location | Event 2 | -11/Scrapyard | Met Revision 17 69 | -11/Scrapyard | Discovered new exit (range 8) 182 | -11/Scrapyard | Entered Materials 312 | -10/Materials | Build established: Mutant 365 | -10/Materials | Discovered new exit (range 6) 535 | -10/Materials | Entered Subcaves 536 | -10/Subcaves | Approached by a straggling Scientist 706 | -10/Subcaves | Ambushed by swarm of Subdwellers 959 | -10/Subcaves | Learned location of Zion (-7) 959 | -10/Subcaves | Met a Zionite searching for "candidates" 1038 | -10/Subcaves | Build established: Scavenger-Mutant 1259 | -10/Subcaves | Scientist uncovered a shortcut to Scraptown 1275 | -10/Subcaves | Entered Scraptown 1635 | -7/Scraptown | Build established: Mutant 1646 | -7/Scraptown | Visited SPCMW 1758 | -7/Scraptown | Visited Cyclists 1820 | -7/Scraptown | Visited UFD Registry 2333 | -7/Scraptown | Heard Great Nut preacher, LISTEN AND RECITE! 2706 | -7/Scraptown | Scanned Subdweller tech in exchange for log data 2714 | -7/Scraptown | Learned location of Testing (-2) 2717 | -7/Scraptown | Learned location of Quarantine (-3) 2756 | -7/Scraptown | Discovered new exit (range 7) 2960 | -7/Scraptown | Visited Bundlers 3201 | -7/Scraptown | Visited Cave Peace 3350 | -7/Scraptown | Visited Symbiants 3442 | -7/Scraptown | Registered with UFD as "Flakwalker" 3511 | -7/Scraptown | Visited Curators Association 3591 | -7/Scraptown | Visited DA-N13 Charitable Foundation 3682 | -7/Scraptown | Visited Research Penetration Think Tank 3796 | -7/Scraptown | Delivered Scrap Shield to a Scientist 4128 | -7/Scraptown | Visited Junk Repository 4241 | -7/Scraptown | Visited Analyses Database 4337 | -7/Scraptown | Met Optimus 4337 | -7/Scraptown | Accepted into 0bPrime 4506 | -7/Scraptown | Visited Abandonware Association 4510 | -7/Scraptown | Civil war broke out across Scraptown 4518 | -7/Scraptown | Core integrity fell below 50% 4597 | -7/Scraptown | Core integrity fell below 20% 4599 | -7/Scraptown | Destroyed by BI-8WQ(x) with Makeshift Spear Last Messages --------------- 04534_ Machine disabled. 04535_ JL-25L(p) destroyed. 04537_ IV-AE6(p): "Down with Optimus!" 04537_ Slug penetrates IV-AE6(p). 04539_ IV-AE6(p) destroyed. 04573_ Y0-EDE(j): "How are there so many of them? Surely our efforts have been convincing enough throughout recent cycles." 04583_ Bolt penetrates Machine. 04584_ System corrupted: Heat flow error (+282). 04584_ V3-MLZ(E) destroyed. 04589_ 6W-LHM(j) destroyed. 04590_ Penetrated by Bolt. 04590_ 3Q-FO2(j) suffers critical hit (Burn). 04591_ Bolt penetrates Machine. 04597_ Machine collapses. 04597_ Machine disabled. 04597_ DU-IOZ(j): "I'll admit this is sort of exciting." 04597_ Y0-EDE(j) destroyed. Map ----- +----------------------------------------------------+ | ?????????????????????????????????????????????????? | | ?????????????????????????????????????????????????? | | ?????????????????????????????????????????????????? | | ?????????????????????????????????????????????????? | | ?????????????????????????????????????????????????? | | ?????????????????????????????????????????????????? | | ?????????????????????????????????????????????????? | | ?????????????????????????????????????????????????? | | ?????????????????????????????????????????????????? | | ?????????????????????????????????????????????????? | | ?????????????????????????????????????????????????? | | ??????????????????????????????? !????????????????? | | ???????????????????????????????=%????????????????? | | ???????????????????????????????==????????????????? | | ??????????????????????????????# %????????????????? | | ????????????????????????""""??# ####????????????? | | ???????????????????????""""""?# #"""????????????? | | ???????????????????????""""""?# #" ????????????? | | ??????????????????????"" ""?# # """??????????? | | ??????????????????????"" ""?# # """??????????? | | ?????????????????????""" "!"# " """??????????? | | ??????????????????????""" """# # ??????????? | | ???????????????????????" """# # ???????????? | | ???????????????????????? # #"""????????????? | | ????????????????????????# #?#"# ## ##???????????? | | ????????????? ????#######@####" !## "##########??? | | ?????????"""" """""""""""x """"*%"" "## ???? | | ??????? hj*%[[ "## ????? | | ?????? jj=[! ="## """?????? | | ?????? h *!!"## "#??????? | | ?????? * %/"## "#??????? | | ??????? =%! %=%[! "### ??? | | ???????"""""""""""""""""""" [!=## """" ??? | | ???????""""""""""""""""" "## ""?? | | "?###### ############# "## "#? | | "?# ##??????## "" "############? | | ""# X"#????????#"" =["## """"#???? | | ""# "" "" ##????????#" =%"## " "#???? | | ""# "" "" X"#??????### " !!"## X"#???? | | ""# " " ######### """ !% "## "#???? | | "" "" ""#???? | | "" "" "## " "#???? | | ""# " " ######### #" ## """"#???? | | ""# "" "" ""#??????###"" "## """"#???? | | ""# "" "" ##????????#"" "#########???? | | ""# X"#????????#"" "#???????????? | | ""# ##????????#"" "########????? | | ""###### ################"" "## ! #????? | | """""""""""""""""""""""""""" "## /#????? | | """""""""""""""""""""""""""" ####????? | +----------------------------------------------------+ Best States ------------- Heat Dissipation 35 Energy Generation 16 Energy Capacity 290 Matter Stores 300 Matter Capacity 300 Sight Range 16 Terrain Scan Range 16 Terrain Scan Density 10 Evasion (%) 55 Item Schematics ----------------- None Robot Schematics ------------------ None Fabricated ------------ Nothing Repaired ---------- Nothing Alien Tech Used ----------------- None Achievements -------------- Armchair Analyst Librarian Challenges ------------ None Game ------ Seed AssaultBiocellParser Manual? 0 Play Time 00:39:23 Cumulative 4.5 hours Start 2025.07.22 @ 17:48:19 End 2025.07.22 @ 18:29:43 Sessions 1 Manual Loads 0 Difficulty Rogue Special Mode None Game No. 8 Rogue 8 Adventurer 0 Explorer 0 Win Type - Total 0 Types 0/0/0/0/0/0/0/0/0/0 Lore% 9 Gallery% 10 Achievement% 10 Wizard Run 0 Options --------- Layout 1 ASCII 0 Keyboard 0 Movement Numpad Keybinds 0 Fullscreen 2 Font 24/Smallcaps Map View 50x35 Zoom Use 0% Tactical HUD 1 Map Filters NONE Filters NONE Steam 1 RUN: 16f6823c-6892-4482-a1db-05ee7e0ef5dc